fUST/lending_fUST_20250717
["ID","MTS","AMOUNT","RATE_DAILY","PERIOD"]
[372780249,1752759045085,-460.0,0.00017207,2]
[372780251,1752759045095,-460.0,0.00017207,2]
[372780253,1752759045105,-460.0,0.00017207,2]
[372780254,1752759045115,-460.0,0.00017207,2]
[372780256,1752759045124,-460.0,0.00017207,2]
[372780258,1752759045134,-460.0,0.00017207,2]
[372780260,1752759045143,-1402.16,0.00017207,2]
[372780262,1752759045152,-460.0,0.00017207,2]
[372780264,1752759045162,-460.0,0.00017207,2]
[372780266,1752759045172,-460.0,0.00017207,2]
[372780280,1752759045181,-460.0,0.00017207,2]
[372780282,1752759045310,-460.0,0.00017207,2]
[372780284,1752759045320,-460.0,0.00017207,2]
[372780286,1752759045330,-460.0,0.00017207,2]
[372780288,1752759045339,-460.0,0.00017207,2]
[372780290,1752759045350,-460.0,0.00017207,2]
[372780292,1752759045361,-500.0,0.00017209,2]
[372780294,1752759045371,-500.0,0.00017209,2]
[372780296,1752759045380,-7281.44862752,0.0001721,2]
[372780298,1752759045390,-500.0,0.00017211,2]
[372780300,1752759045401,-500.0,0.00017211,2]
[372780302,1752759045410,-523.32314313,0.00017212,2]
[372780304,1752759045419,-221.95,0.00017212,2]
[372780306,1752759045428,-460.0,0.00017212,2]
[372780308,1752759045439,-500.0,0.00017212,2]
[372780310,1752759045448,-591.78,0.00017212,2]
[372780311,1752759045458,-460.0,0.00017212,2]
[372780313,1752759045467,-460.0,0.00017212,2]
[372780315,1752759045477,-460.0,0.00017212,2]
[372780317,1752759045486,-460.0,0.00017212,2]
[372780319,1752759045496,-460.0,0.00017212,2]
[372780321,1752759045506,-460.0,0.00017212,2]
[372780323,1752759045515,-460.0,0.00017212,2]
[372780325,1752759045524,-404.74508096,0.00017212,2]
[372780327,1752759045534,-460.0,0.00017212,2]
[372780329,1752759045543,-460.0,0.00017212,2]
[372780331,1752759045553,-460.0,0.00017212,2]
[372780333,1752759045562,-460.0,0.00017212,2]
[372780334,1752759045572,-460.0,0.00017212,2]
[372780335,1752759045582,-460.0,0.00017212,2]
[372780336,1752759045591,-460.0,0.00017212,2]
[372780337,1752759045601,-460.0,0.00017212,2]
[372780338,1752759045611,-460.0,0.00017212,2]
[372780339,1752759045620,-460.0,0.00017212,2]
[372780340,1752759045629,-460.0,0.00017212,2]
[372780341,1752759045639,-460.0,0.00017212,2]
[372780342,1752759045648,-460.0,0.00017212,2]
[372780343,1752759045658,-460.0,0.00017212,2]
[372780344,1752759045668,-460.0,0.00017212,2]
[372780345,1752759045677,-460.0,0.00017212,2]
[372780346,1752759045687,-460.0,0.00017212,2]
[372780347,1752759045696,-460.0,0.00017212,2]
[372780348,1752759045708,-460.0,0.00017212,2]
[372780349,1752759045718,-460.0,0.00017212,2]
[372780350,1752759045727,-460.0,0.00017212,2]
[372780351,1752759045737,-460.0,0.00017212,2]
[372780352,1752759045747,-460.0,0.00017212,2]
[372780353,1752759045757,-460.0,0.00017212,2]
[372780354,1752759045766,-460.0,0.00017212,2]
[372780355,1752759045775,-460.0,0.00017212,2]
[372780356,1752759045784,-460.0,0.00017212,2]
[372780357,1752759045794,-460.0,0.00017212,2]
[372780358,1752759045804,-460.0,0.00017212,2]
[372780359,1752759045813,-3328.51382752,0.00017221,2]
[372780360,1752759045823,-332.0,0.00017228,2]
[372780361,1752759045832,-500.0,0.00017372,2]
[372780363,1752759045842,-160.12631199,0.00017372,2]
[372780365,1752759045851,-370.58265892,0.00017372,2]
[372780367,1752759045860,-460.0,0.00017385,2]
[372780369,1752759045870,-460.0,0.00017385,2]
[372780371,1752759045879,-572.12,0.00017385,2]
[372780373,1752759045889,-460.0,0.00017385,2]
[372780375,1752759045898,-460.0,0.00017385,2]
[372780377,1752759045907,-460.0,0.00017385,2]
[372780379,1752759045917,-460.0,0.00017385,2]
[372780381,1752759045927,-460.0,0.00017385,2]
[372780383,1752759045937,-655.28,0.00017385,2]
[372780385,1752759045947,-460.0,0.00017385,2]
[372780387,1752759045958,-460.0,0.00017385,2]
[372780389,1752759045967,-554.51,0.00017385,2]
[372780391,1752759045977,-474.70639698,0.00017386,2]
[372780393,1752759045986,-460.0,0.00017386,2]
[372780395,1752759045996,-460.0,0.00017386,2]
[372780397,1752759046006,-480.89545933,0.00017386,2]
[372780399,1752759046015,-460.0,0.00017386,2]
[372780401,1752759046025,-460.0,0.00017386,2]
[372780403,1752759046034,-460.0,0.00017386,2]
[372780405,1752759046044,-498.50939823,0.00017386,2]
[372780407,1752759046054,-460.0,0.00017386,2]
[372780409,1752759046063,-460.0,0.00017386,2]
[372780411,1752759046072,-460.0,0.00017386,2]
[372780413,1752759046082,-460.0,0.00017386,2]
[372780415,1752759046091,-460.0,0.00017386,2]
[372780417,1752759046101,-460.0,0.00017386,2]
[372780419,1752759046111,-4251.05,0.00017386,2]
[372780421,1752759046120,-460.0,0.00017386,2]
[372780423,1752759046130,-460.0,0.00017386,2]
[372780425,1752759046139,-460.0,0.00017386,2]
[372780427,1752759046148,-1166.37,0.00017386,2]
[372780429,1752759046157,-460.0,0.00017386,2]
[372780431,1752759046167,-464.26113535,0.00017386,2]
[372780434,1752759046176,-399.0,0.00017389,2]
[372780436,1752759046186,-499.25228504,0.00017404,2]
[372780438,1752759046195,-300.0,0.00017429,2]
[372780440,1752759046204,-804.43101875,0.00017457,2]
[372780442,1752759046214,-249.80753227,0.00017458,2]
[372780444,1752759046223,-460.0,0.00017458,2]
[372780446,1752759046232,-460.0,0.00017459,2]
[372780448,1752759046242,-460.0,0.00017459,2]
[372780450,1752759046252,-460.0,0.00017459,2]
[372780452,1752759046261,-449.09225667,0.00017459,2]
[372780454,1752759046271,-460.0,0.00017459,2]
[372780456,1752759046280,-460.0,0.00017459,2]
[372780458,1752759046289,-460.0,0.00017459,2]
[372780460,1752759046298,-2027.67,0.00017459,2]
[372780462,1752759046308,-460.0,0.00017459,2]
[372780464,1752759046318,-460.0,0.0001746,2]
[372780466,1752759046328,-460.0,0.0001746,2]
[372780468,1752759046337,-460.0,0.0001746,2]
[372780470,1752759046346,-460.0,0.0001746,2]
[372780472,1752759046359,-460.0,0.0001746,2]
[372780474,1752759046369,-4470.12,0.0001746,2]
[372780476,1752759046379,-3353.99,0.0001746,2]
[372780478,1752759046388,-460.0,0.0001746,2]
[372780480,1752759046398,-739.67,0.0001746,2]
[372780482,1752759046408,-460.0,0.0001746,2]
[372780484,1752759046417,-2621.83,0.0001746,2]
[372780486,1752759046428,-460.0,0.0001746,2]
[372780488,1752759046437,-2600.9,0.0001746,2]
[372780490,1752759046447,-460.0,0.0001746,2]
[372780492,1752759046457,-1436.69,0.0001746,2]
[372780494,1752759046466,-620.94,0.0001746,2]
[372780496,1752759046476,-460.0,0.0001746,2]
[372780498,1752759046486,-460.0,0.0001746,2]
[372780500,1752759046495,-712.0,0.0001746,2]
[372780502,1752759046505,-1497.38,0.0001746,2]
[372780504,1752759046514,-460.0,0.0001748,2]
[372780506,1752759046524,-460.0,0.0001748,2]
[372780508,1752759046534,-240.62,0.0001748,2]
[372780511,1752759046546,-460.0,0.0001748,2]
[372780513,1752759046557,-460.0,0.0001748,2]
[372780515,1752759046565,-460.0,0.0001748,2]
[372780517,1752759046575,-460.0,0.0001748,2]
[372780518,1752759046584,-460.0,0.0001748,2]
[372780520,1752759046594,-626.78,0.0001748,2]
[372780522,1752759046603,-509.7,0.0001748,2]
[372780524,1752759046612,-963.07,0.0001748,2]
[372780527,1752759046622,-500.0,0.0001748,2]
[372780528,1752759046631,-199.03087342,0.0001748,2]
[372780530,1752759046641,-460.0,0.0001748,2]
[372780532,1752759046650,-460.0,0.0001748,2]
[372780534,1752759046659,-460.0,0.0001748,2]
[372780536,1752759046669,-460.0,0.0001748,2]
[372780539,1752759046679,-460.0,0.0001748,2]
[372780541,1752759046688,-460.0,0.0001748,2]
[372780543,1752759046698,-460.0,0.0001748,2]
[372780544,1752759046708,-460.0,0.0001748,2]
[372780546,1752759046717,-604.51,0.0001748,2]
[372780548,1752759046727,-460.0,0.0001748,2]
[372780550,1752759046736,-460.0,0.0001748,2]
[372780552,1752759046746,-804.17,0.0001748,2]
[372780554,1752759046755,-460.0,0.0001748,2]
[372780556,1752759046764,-460.0,0.00017481,2]
[372780558,1752759046774,-460.0,0.00017481,2]
[372780560,1752759046783,-672.21,0.00017481,2]
[372780563,1752759046793,-460.0,0.00017481,2]
[372780565,1752759046802,-460.0,0.00017481,2]
[372780567,1752759046811,-585.3,0.00017481,2]
[372780569,1752759046820,-460.0,0.00017481,2]
[372780571,1752759046829,-460.0,0.00017481,2]
[372780573,1752759046839,-460.0,0.00017481,2]
[372780575,1752759046848,-460.0,0.00017481,2]
[372780577,1752759046857,-460.0,0.00017481,2]
[372780579,1752759046866,-460.0,0.00017481,2]
[372780581,1752759046876,-680.16,0.00017481,2]
[372780583,1752759046886,-460.0,0.00017481,2]
[372780585,1752759046895,-460.0,0.00017481,2]
[372780587,1752759046904,-460.0,0.00017481,2]
[372780589,1752759046914,-460.0,0.00017481,2]
[372780591,1752759046923,-460.0,0.00017481,2]
[372780594,1752759046933,-460.0,0.00017481,2]
[372780596,1752759046942,-460.0,0.00017481,2]
[372780597,1752759046952,-1402.16,0.00017481,2]
[372780600,1752759046963,-460.0,0.00017481,2]
[372780601,1752759046972,-487.6,0.00017481,2]
[372780604,1752759046982,-460.0,0.00017481,2]
[372780605,1752759046991,-460.0,0.00017481,2]
[372780608,1752759047001,-460.0,0.00017481,2]
[372780609,1752759047010,-460.0,0.00017481,2]
[372780611,1752759047019,-500.0,0.00017485,2]
[372780613,1752759047029,-591.78,0.00017486,2]
[372780616,1752759047038,-460.0,0.00017486,2]
[372780618,1752759047048,-460.0,0.00017486,2]
[372780619,1752759047057,-460.0,0.00017486,2]
[372780622,1752759047066,-460.0,0.00017486,2]
[372780623,1752759047075,-460.0,0.00017486,2]
[372780625,1752759047084,-460.0,0.00017486,2]
[372780628,1752759047094,-460.0,0.00017486,2]
[372780629,1752759047104,-237.17240886,0.00017486,2]
[372780632,1752759047114,-460.0,0.00017486,2]
[372780633,1752759047123,-460.0,0.00017486,2]
[372780635,1752759047133,-511.9516689,0.00017486,2]
[372780637,1752759047142,-460.0,0.00017486,2]
[372780639,1752759047151,-460.0,0.00017486,2]
[372780641,1752759047161,-460.0,0.00017486,2]
[372780643,1752759047170,-460.0,0.00017486,2]
[372780645,1752759047180,-460.0,0.00017486,2]
[372780647,1752759047190,-460.0,0.00017486,2]
[372780649,1752759047199,-460.0,0.00017486,2]
[372780651,1752759047210,-460.0,0.00017486,2]
[372780653,1752759047220,-460.0,0.00017486,2]
[372780655,1752759047229,-291.46808476,0.00017486,2]
[372780657,1752759047239,-460.0,0.00017486,2]
[372780659,1752759047248,-460.0,0.00017486,2]
[372780661,1752759047258,-500.0,0.00017517,2]
[372780663,1752759047267,-500.0,0.0001752,2]
[372780665,1752759047278,-500.0,0.0001752,2]
[372780667,1752759047287,-500.0,0.0001752,2]
[372780669,1752759047298,-1000.0,0.00017521,2]
[372780671,1752759047307,-7281.44862752,0.00017521,2]
[372780673,1752759047316,-500.91622746,0.00017526,2]
[372780675,1752759047325,-513.0,0.0001759,2]
[372780677,1752759047335,-500.0,0.00017595,2]
[372780679,1752759047344,-500.0,0.00017595,2]
[372780681,1752759047355,-621.96,0.00017617,2]
[372780683,1752759047365,-3790.11543494,0.00017641,2]
[372780685,1752759047374,-4015.3536666,0.00017641,2]
[372780687,1752759047383,-460.0,0.00017659,2]
[372780689,1752759047393,-460.0,0.00017659,2]
[372780691,1752759047403,-572.12,0.00017659,2]
[372780693,1752759047412,-460.0,0.00017659,2]
[372780695,1752759047422,-460.0,0.00017659,2]
[372780697,1752759047431,-460.0,0.00017659,2]
[372780699,1752759047441,-460.0,0.00017659,2]
[372780701,1752759047450,-460.0,0.00017659,2]
[372780703,1752759047461,-655.28,0.00017659,2]
[372780705,1752759047470,-460.0,0.00017659,2]
[372780707,1752759047480,-460.0,0.00017659,2]
[372780709,1752759047489,-554.51,0.00017659,2]
[372780711,1752759047498,-460.0,0.0001766,2]
[372780713,1752759047508,-256.35568795,0.0001766,2]
[372780715,1752759047518,-460.0,0.0001766,2]
[372780717,1752759047527,-521.67144259,0.0001766,2]
[372780719,1752759047536,-460.0,0.0001766,2]
[372780721,1752759047545,-460.0,0.0001766,2]
[372780723,1752759047554,-325.20830854,0.0001766,2]
[372780725,1752759047563,-224.22990729,0.0001766,2]
[372780727,1752759047572,-4251.05,0.0001766,2]
[372780729,1752759047581,-460.0,0.0001766,2]
[372780731,1752759047590,-460.0,0.0001766,2]
[372780733,1752759047599,-460.0,0.0001766,2]
[372780735,1752759047608,-1166.37,0.0001766,2]
[372780737,1752759047617,-460.0,0.0001766,2]
[372780739,1752759047626,-460.0,0.00017732,2]
[372780740,1752759047635,-460.0,0.00017733,2]
[372780742,1752759047644,-460.0,0.00017733,2]
[372780745,1752759047654,-460.0,0.00017733,2]
[372780746,1752759047663,-460.0,0.00017733,2]
[372780748,1752759047672,-460.0,0.00017733,2]
[372780751,1752759047682,-2027.67,0.00017733,2]
[372780753,1752759047691,-460.0,0.00017733,2]
[372780754,1752759047700,-460.0,0.00017734,2]
[372780756,1752759047712,-468.47513244,0.00017734,2]
[372780758,1752759047721,-4470.12,0.00017734,2]
[372780761,1752759047731,-3353.99,0.00017734,2]
[372780762,1752759047740,-739.67,0.00017734,2]
[372780765,1752759047750,-460.0,0.00017734,2]
[372780767,1752759047760,-2621.83,0.00017734,2]
[372780769,1752759047769,-460.0,0.00017734,2]
[372780771,1752759047779,-2600.9,0.00017734,2]
[372780773,1752759047788,-460.0,0.00017734,2]
[372780774,1752759047798,-1436.69,0.00017734,2]
[372780776,1752759047807,-620.94,0.00017734,2]
[372780778,1752759047817,-460.0,0.00017734,2]
[372780780,1752759047826,-460.0,0.00017734,2]
[372780782,1752759047835,-712.0,0.00017734,2]
[372780785,1752759047845,-1497.38,0.00017734,2]
[372780786,1752759047855,-460.0,0.00017754,2]
[372780788,1752759047865,-460.0,0.00017754,2]
[372780790,1752759047874,-460.0,0.00017754,2]
[372780806,1752759048011,-460.0,0.00017754,2]
[372780808,1752759048021,-460.0,0.00017754,2]
[372780810,1752759048031,-460.0,0.00017754,2]
[372780812,1752759048040,-460.0,0.00017754,2]
[372780814,1752759048050,-626.78,0.00017754,2]
[372780816,1752759048059,-509.7,0.00017754,2]
[372780818,1752759048069,-963.07,0.00017754,2]
[372780820,1752759048081,-500.0,0.00017754,2]
[372780822,1752759048091,-460.0,0.00017754,2]
[372780824,1752759048101,-460.0,0.00017754,2]
[372780826,1752759048110,-460.0,0.00017754,2]
[372780828,1752759048120,-460.0,0.00017754,2]
[372780830,1752759048129,-460.0,0.00017754,2]
[372780832,1752759048139,-460.0,0.00017754,2]
[372780834,1752759048148,-460.0,0.00017754,2]
[372780836,1752759048158,-604.51,0.00017754,2]
[372780838,1752759048168,-460.0,0.00017754,2]
[372780839,1752759048178,-460.0,0.00017754,2]
[372780841,1752759048188,-804.17,0.00017754,2]
[372780843,1752759048198,-460.0,0.00017754,2]
[372780844,1752759048208,-460.0,0.00017755,2]
[372780846,1752759048219,-460.0,0.00017755,2]
[372780848,1752759048228,-672.21,0.00017755,2]
[372780849,1752759048238,-379.6031864,0.00017755,2]
[372780851,1752759048248,-460.0,0.00017755,2]
[372780853,1752759048258,-585.3,0.00017755,2]
[372780854,1752759048268,-534.29020638,0.00017755,2]
[372780856,1752759048278,-460.0,0.00017755,2]
[372780858,1752759048288,-460.0,0.00017755,2]
[372780860,1752759048299,-680.16,0.00017755,2]
[372780861,1752759048309,-460.0,0.00017755,2]
[372780863,1752759048320,-460.0,0.00017755,2]
[372780865,1752759048330,-460.0,0.00017755,2]
[372780866,1752759048339,-460.0,0.00017755,2]
[372780868,1752759048351,-460.0,0.00017755,2]
[372780869,1752759048364,-460.0,0.00017755,2]
[372780871,1752759048374,-1402.16,0.00017755,2]
[372780873,1752759048383,-460.0,0.00017755,2]
[372780874,1752759048392,-460.0,0.00017755,2]
[372780876,1752759048402,-460.0,0.00017755,2]
[372780878,1752759048412,-460.0,0.00017755,2]
[372780879,1752759048421,-500.0,0.00017759,2]
[372780881,1752759048432,-591.78,0.0001776,2]
[372780883,1752759048441,-460.0,0.0001776,2]
[372780884,1752759048450,-460.0,0.0001776,2]
[372780886,1752759048463,-460.0,0.0001776,2]
[372780888,1752759048473,-460.0,0.0001776,2]
[372780889,1752759048483,-592.92537845,0.0001776,2]
[372780891,1752759048493,-460.0,0.0001776,2]
[372780893,1752759048503,-386.14255745,0.0001776,2]
[372780895,1752759048513,-460.0,0.0001776,2]
[372780896,1752759048523,-460.0,0.0001776,2]
[372780898,1752759048533,-460.0,0.0001776,2]
[372780900,1752759048543,-460.0,0.0001776,2]
[372780901,1752759048552,-460.0,0.0001776,2]
[372780903,1752759048562,-460.0,0.0001776,2]
[372780905,1752759048571,-460.0,0.0001776,2]
[372780907,1752759048581,-460.0,0.0001776,2]
[372780908,1752759048590,-3194.18477059,0.00017796,2]
[372780910,1752759048600,-7281.44862752,0.00017831,2]
[372780912,1752759048611,-500.0,0.00017926,2]
[372780914,1752759048620,-460.0,0.00017933,2]
[372780916,1752759048630,-460.0,0.00017933,2]
[372780917,1752759048640,-572.12,0.00017933,2]
[372780919,1752759048649,-460.0,0.00017933,2]
[372780921,1752759048658,-460.0,0.00017933,2]
[372780923,1752759048667,-460.0,0.00017933,2]
[372780924,1752759048676,-460.0,0.00017933,2]
[372780926,1752759048685,-460.0,0.00017933,2]
[372780928,1752759048696,-655.28,0.00017933,2]
[372780930,1752759048705,-460.0,0.00017933,2]
[372780932,1752759048719,-460.0,0.00017933,2]
[372780933,1752759048728,-554.51,0.00017933,2]
[372780935,1752759048737,-460.0,0.00017934,2]
[372780937,1752759048747,-460.0,0.00017934,2]
[372780938,1752759048756,-4251.05,0.00017934,2]
[372780940,1752759048766,-460.0,0.00017934,2]
[372780942,1752759048776,-460.0,0.00017934,2]
[372780944,1752759048785,-460.0,0.00017934,2]
[372780946,1752759048794,-1166.37,0.00017934,2]
[372780947,1752759048803,-460.0,0.00017934,2]
[372780949,1752759048813,-160.0,0.00017982,2]
[372780951,1752759048823,-460.0,0.00018007,2]
[372780953,1752759048832,-460.0,0.00018007,2]
[372780954,1752759048842,-460.0,0.00018007,2]
[372780956,1752759048851,-460.0,0.00018007,2]
[372780958,1752759048860,-2027.67,0.00018007,2]
[372780960,1752759048870,-460.0,0.00018007,2]
[372780962,1752759048880,-4470.12,0.00018008,2]
[372780963,1752759048889,-3353.99,0.00018008,2]
[372780965,1752759048899,-739.67,0.00018008,2]
[372780967,1752759048908,-460.0,0.00018008,2]
[372780969,1752759048917,-2621.83,0.00018008,2]
[372780970,1752759048927,-460.0,0.00018008,2]
[372780972,1752759048936,-2600.9,0.00018008,2]
[372780974,1752759048946,-460.0,0.00018008,2]
[372780976,1752759048955,-1436.69,0.00018008,2]
[372780977,1752759048966,-620.94,0.00018008,2]
[372780979,1752759048976,-460.0,0.00018008,2]
[372780981,1752759048986,-460.0,0.00018008,2]
[372780983,1752759048995,-712.0,0.00018008,2]
[372780984,1752759049004,-1497.38,0.00018008,2]
[372780986,1752759049014,-460.0,0.00018028,2]
[372780988,1752759049023,-460.0,0.00018028,2]
[372780989,1752759049032,-460.0,0.00018028,2]
[372780991,1752759049041,-460.0,0.00018028,2]
[372780993,1752759049051,-460.0,0.00018028,2]
[372780994,1752759049059,-626.78,0.00018028,2]
[372780996,1752759049069,-509.7,0.00018028,2]
[372780998,1752759049078,-963.07,0.00018028,2]
[372780999,1752759049088,-500.0,0.00018028,2]
[372781001,1752759049097,-460.0,0.00018028,2]
[372781003,1752759049107,-460.0,0.00018028,2]
[372781005,1752759049117,-460.0,0.00018028,2]
[372781006,1752759049126,-460.0,0.00018028,2]
[372781008,1752759049136,-460.0,0.00018028,2]
[372781010,1752759049146,-460.0,0.00018028,2]
[372781012,1752759049157,-460.0,0.00018028,2]
[372781014,1752759049168,-604.51,0.00018028,2]
[372781015,1752759049178,-460.0,0.00018028,2]
[372781017,1752759049188,-460.0,0.00018028,2]
[372781019,1752759049199,-804.17,0.00018028,2]
[372781021,1752759049211,-443.59969883,0.00018028,2]
[372781022,1752759049223,-460.0,0.00018029,2]
[372781024,1752759049237,-460.0,0.00018029,2]
[372781026,1752759049247,-672.21,0.00018029,2]
[372781028,1752759049257,-460.0,0.00018029,2]
[372781029,1752759049266,-585.3,0.00018029,2]
[372781031,1752759049275,-401.71284279,0.00018029,2]
[372781033,1752759049285,-461.94764585,0.00018029,2]
[372781035,1752759049294,-680.16,0.00018029,2]
[372781036,1752759049305,-460.0,0.00018029,2]
[372781038,1752759049314,-460.0,0.00018029,2]
[372781040,1752759049323,-460.0,0.00018029,2]
[372781041,1752759049332,-460.0,0.00018029,2]
[372781043,1752759049341,-1402.16,0.00018029,2]
[372781045,1752759049350,-460.0,0.00018029,2]
[372781047,1752759049364,-460.0,0.00018029,2]
[372781048,1752759049374,-460.0,0.00018029,2]
[372781050,1752759049383,-460.0,0.00018029,2]
[372781052,1752759049393,-500.0,0.00018033,2]
[372781054,1752759049402,-591.78,0.00018034,2]
[372781055,1752759049411,-460.0,0.00018034,2]
[372781057,1752759049421,-460.0,0.00018034,2]
[372781059,1752759049430,-460.0,0.00018034,2]
[372781061,1752759049439,-532.66,0.00018034,2]
[372781062,1752759049449,-460.0,0.00018034,2]
[372781064,1752759049459,-460.0,0.00018034,2]
[372781066,1752759049469,-460.0,0.00018034,2]
[372781068,1752759049479,-514.98444886,0.00018065,2]
[372781069,1752759049488,-1000.0,0.00018068,2]
[372781071,1752759049497,-500.0,0.00018068,2]
[372781073,1752759049508,-298.29602581,0.00018068,2]
[372781075,1752759049518,-151.0,0.000181,2]
[372781076,1752759049527,-7281.44862752,0.00018141,2]
[372781078,1752759049537,-707.7516746,0.00018143,2]
[372781080,1752759049546,-397.95170197,0.00018173,2]
[372781082,1752759049555,-300.0,0.00018176,2]
[372781083,1752759049564,-824.0,0.00018178,2]
[372781085,1752759049573,-3968.48,0.00018198,3]
[372781087,1752759049583,-1984.24,0.00018198,3]
[372781089,1752759049593,-992.12,0.00018198,3]
[372781090,1752759049602,-476.16111942,0.00018198,3]
[372781092,1752759049612,-214.44804168,0.00018198,3]
[372781094,1752759049621,-12607.95677342,0.00018198,3]
[372781096,1752759049630,-460.0,0.00018207,2]
[372781097,1752759049638,-572.12,0.00018207,2]
[372781099,1752759049647,-460.0,0.00018207,2]
[372781101,1752759049656,-460.0,0.00018207,2]
[372781103,1752759049666,-460.0,0.00018207,2]
[372781104,1752759049674,-655.28,0.00018207,2]
[372781106,1752759049684,-460.0,0.00018207,2]
[372781108,1752759049693,-460.0,0.00018207,2]
[372781110,1752759049703,-554.51,0.00018207,2]
[372781111,1752759049714,-192.41077054,0.00018208,2]
[372781113,1752759049723,-460.0,0.00018208,2]
[372781115,1752759049733,-4251.05,0.00018208,2]
[372781117,1752759049742,-460.0,0.00018208,2]
[372781118,1752759049752,-460.0,0.00018208,2]
[372781120,1752759049761,-1166.37,0.00018208,2]
[372781122,1752759049771,-460.0,0.00018208,2]
[372781124,1752759049779,-1680.0,0.00018266,2]
[372781125,1752759049789,-460.0,0.00018281,2]
[372781127,1752759049799,-460.0,0.00018281,2]
[372781129,1752759049808,-460.0,0.00018281,2]
[372781131,1752759049817,-460.0,0.00018281,2]
[372781132,1752759049826,-2027.67,0.00018281,2]
[372781134,1752759049836,-460.0,0.00018281,2]
[372781136,1752759049845,-4470.12,0.00018282,2]
[372781138,1752759049855,-3353.99,0.00018282,2]
[372781139,1752759049865,-739.67,0.00018282,2]
[372781141,1752759049874,-460.0,0.00018282,2]
[372781143,1752759049884,-2621.83,0.00018282,2]
[372781145,1752759049893,-460.0,0.00018282,2]
[372781147,1752759049903,-2600.9,0.00018282,2]
[372781148,1752759049912,-460.0,0.00018282,2]
[372781150,1752759049921,-1436.69,0.00018282,2]
[372781152,1752759049930,-620.94,0.00018282,2]
[372781154,1752759049939,-460.0,0.00018282,2]
[372781155,1752759049948,-460.0,0.00018282,2]
[372781157,1752759049957,-712.0,0.00018282,2]
[372781159,1752759049971,-1497.38,0.00018282,2]
[372781161,1752759049980,-4672.64442038,0.00018287,2]
[372781163,1752759049988,-496.06,0.00018292,3]
[372781164,1752759049998,-460.0,0.00018302,2]
[372781166,1752759050007,-460.0,0.00018302,2]
[372781168,1752759050016,-460.0,0.00018302,2]
[372781170,1752759050026,-300.87884127,0.00018302,2]
[372781171,1752759050035,-460.0,0.00018302,2]
[372781173,1752759050045,-626.78,0.00018302,2]
[372781175,1752759050054,-509.7,0.00018302,2]
[372781177,1752759050065,-963.07,0.00018302,2]
[372781178,1752759050074,-266.55303573,0.00018302,2]
[372781180,1752759050083,-460.0,0.00018302,2]
[372781182,1752759050093,-460.0,0.00018302,2]
[372781184,1752759050102,-460.0,0.00018302,2]
[372781185,1752759050111,-460.0,0.00018302,2]
[372781187,1752759050121,-460.0,0.00018302,2]
[372781189,1752759050130,-460.0,0.00018302,2]
[372781191,1752759050139,-604.51,0.00018302,2]